fUST/lending_fUST_20241028
["ID","MTS","AMOUNT","RATE_DAILY","PERIOD"]
[340919897,1730091042189,-151.0,0.00024646,7]
[340919898,1730091042198,-197.258798,0.00024646,7]
[340919899,1730091042207,-151.0,0.00024646,7]
[340919900,1730091042216,-151.0,0.00024646,7]
[340919901,1730091042226,-151.0,0.00024646,7]
[340919902,1730091042236,-151.0,0.00024646,7]
[340919903,1730091042246,-151.0,0.00024646,7]
[340919904,1730091042255,-151.0,0.00024646,7]
[340919905,1730091042266,-151.0,0.00024646,7]
[340919906,1730091042276,-151.0,0.00024646,7]
[340919907,1730091042286,-151.0,0.00024646,7]
[340919908,1730091042295,-151.0,0.00024646,7]
[340919909,1730091042305,-151.0,0.00024646,7]
[340919910,1730091042315,-151.0,0.00024646,7]
[340919911,1730091042324,-151.0,0.00024646,7]
[340919912,1730091042334,-151.0,0.00024646,7]
[340919913,1730091042344,-179.983221,0.00024646,7]
[340919914,1730091042354,-225.831621,0.00024646,7]
[340919915,1730091042364,-225.831621,0.00024646,7]
[340919916,1730091042375,-225.831621,0.00024646,7]
[340919917,1730091042386,-225.831621,0.00024646,7]
[340919918,1730091042399,-225.831621,0.00024646,7]
[340919919,1730091042410,-225.831621,0.00024646,7]
[340919920,1730091042420,-225.831621,0.00024646,7]
[340919921,1730091042430,-225.831621,0.00024646,7]
[340919922,1730091042440,-225.831621,0.00024646,7]
[340919923,1730091042450,-225.831621,0.00024646,7]
[340919924,1730091042460,-225.831621,0.00024646,7]
[340919925,1730091042469,-225.831621,0.00024646,7]
[340919926,1730091042479,-151.0,0.00024646,7]
[340919927,1730091042488,-225.831621,0.00024646,7]
[340919928,1730091042498,-225.831621,0.00024646,7]
[340919929,1730091042507,-151.0,0.00024646,7]
[340919930,1730091042517,-225.831621,0.00024646,7]
[340919931,1730091042708,-151.0,0.00024646,7]
[340919932,1730091042719,-225.831621,0.00024646,7]
[340919933,1730091042729,-151.0,0.00024646,7]
[340919934,1730091042740,-225.831621,0.00024646,7]
[340919935,1730091042749,-153.791965,0.00024646,7]
[340919936,1730091042760,-225.831621,0.00024646,7]
[340919937,1730091042769,-225.831621,0.00024646,7]
[340919938,1730091042780,-225.83163,0.00024646,7]
[340919939,1730091042791,-151.0,0.00024646,7]
[340919940,1730091042800,-151.0,0.00024646,7]
[340919941,1730091042811,-151.0,0.00024646,7]
[340919942,1730091042821,-151.0,0.00024646,7]
[340919943,1730091042833,-151.0,0.00024646,7]
[340919944,1730091042844,-186.495207,0.00024646,7]
[340919945,1730091042854,-151.0,0.00024646,7]
[340919946,1730091042865,-151.0,0.00024646,7]
[340919947,1730091042875,-151.0,0.00024646,7]
[340919948,1730091042884,-151.0,0.00024646,7]
[340919949,1730091042896,-151.0,0.00024646,7]
[340919950,1730091042907,-227.123576,0.00024646,7]
[340919951,1730091042917,-151.0,0.00024646,7]
[340919952,1730091042928,-151.0,0.00024646,7]
[340919953,1730091042940,-151.0,0.00024646,7]
[340919954,1730091042950,-151.0,0.00024646,7]
[340919955,1730091042961,-152.279183,0.00024646,7]
[340919956,1730091042971,-1000.0,0.00024646,7]
[340919957,1730091042980,-750.08171426,0.00024646,7]
[340919958,1730091042989,-241.341566,0.00024646,7]
[340919959,1730091043000,-551.138137,0.00024646,7]
[340919960,1730091043010,-551.138137,0.00024646,7]
[340919961,1730091043022,-551.138137,0.00024646,7]
[340919962,1730091043032,-551.138137,0.00024646,7]
[340919963,1730091043042,-551.138137,0.00024646,7]
[340919964,1730091043052,-551.138137,0.00024646,7]
[340919965,1730091043061,-551.138137,0.00024646,7]
[340919968,1730091043072,-551.138137,0.00024646,7]
[340919969,1730091043083,-551.138137,0.00024646,7]
[340919970,1730091043094,-551.138137,0.00024646,7]
[340919971,1730091043104,-551.138137,0.00024646,7]
[340919972,1730091043115,-551.138137,0.00024646,7]
[340919973,1730091043126,-551.138137,0.00024646,7]
[340919974,1730091043135,-551.138137,0.00024646,7]
[340919975,1730091043145,-551.138137,0.00024646,7]
[340919976,1730091043154,-551.138133,0.00024646,7]
[340919977,1730091043164,-151.0,0.00024646,7]
[340919978,1730091043173,-151.0,0.00024646,7]
[340919979,1730091043184,-151.0,0.00024646,7]
[340919980,1730091043194,-151.0,0.00024646,7]
[340919981,1730091043205,-151.0,0.00024646,7]
[340919982,1730091043217,-151.0,0.00024646,7]
[340919983,1730091043226,-151.0,0.00024646,7]
[340919984,1730091043236,-151.0,0.00024646,7]
[340919985,1730091043247,-151.0,0.00024646,7]
[340919986,1730091043257,-151.0,0.00024646,7]
[340919987,1730091043266,-151.0,0.00024646,7]
[340919988,1730091043276,-173.566689,0.00024646,7]
[340919989,1730091043285,-160.12983,0.00024646,7]
[340919990,1730091043295,-160.12983,0.00024646,7]
[340919991,1730091043306,-160.12983,0.00024646,7]
[340919992,1730091043316,-160.12983,0.00024646,7]
[340919993,1730091043325,-160.12983,0.00024646,7]
[340919994,1730091043334,-160.12983,0.00024646,7]
[340919995,1730091043343,-160.12983,0.00024646,7]
[340919996,1730091043352,-160.12983,0.00024646,7]
[340919997,1730091043362,-160.12983,0.00024646,7]
[340919998,1730091043372,-160.12983,0.00024646,7]
[340919999,1730091043381,-160.12983,0.00024646,7]
[340920000,1730091043393,-160.12983,0.00024646,7]
[340920001,1730091043402,-160.12983,0.00024646,7]
[340920002,1730091043413,-160.12983,0.00024646,7]
[340920003,1730091043423,-160.12983,0.00024646,7]
[340920004,1730091043432,-160.129823,0.00024646,7]
[340920005,1730091043443,-591.044335,0.00024646,7]
[340920006,1730091043453,-591.044335,0.00024646,7]
[340920007,1730091043462,-591.044335,0.00024646,7]
[340920008,1730091043472,-591.044335,0.00024646,7]
[340920009,1730091043482,-591.044335,0.00024646,7]
[340920010,1730091043493,-591.044335,0.00024646,7]
[340920011,1730091043502,-591.044335,0.00024646,7]
[340920012,1730091043512,-591.044335,0.00024646,7]
[340920013,1730091043522,-591.044335,0.00024646,7]
[340920014,1730091043532,-591.044335,0.00024646,7]
[340920015,1730091043543,-591.044335,0.00024646,7]
[340920016,1730091043553,-591.044335,0.00024646,7]
[340920017,1730091043563,-591.044335,0.00024646,7]
[340920018,1730091043573,-591.044335,0.00024646,7]
[340920019,1730091043583,-591.044335,0.00024646,7]
[340920020,1730091043592,-591.044329,0.00024646,7]
[340920021,1730091043602,-151.0,0.00024646,7]
[340920022,1730091043612,-151.0,0.00024646,7]
[340920023,1730091043621,-151.0,0.00024646,7]
[340920024,1730091043632,-151.0,0.00024646,7]
[340920025,1730091043644,-151.0,0.00024646,7]
[340920026,1730091043653,-151.0,0.00024646,7]
[340920027,1730091043662,-151.0,0.00024646,7]
[340920028,1730091043671,-151.0,0.00024646,7]
[340920029,1730091043680,-151.0,0.00024646,7]
[340920030,1730091043690,-151.0,0.00024646,7]
[340920031,1730091043700,-151.0,0.00024646,7]
[340920032,1730091043711,-151.0,0.00024646,7]
[340920033,1730091043720,-234.936889,0.00024646,7]
[340920035,1730091043732,-196.245166,0.00024646,7]
[340920037,1730091043743,-196.245166,0.00024646,7]
[340920039,1730091043752,-196.245166,0.00024646,7]
[340920041,1730091043763,-196.245166,0.00024646,7]
[340920043,1730091043773,-196.245166,0.00024646,7]
[340920044,1730091043785,-196.245166,0.00024646,7]
[340920045,1730091043795,-196.245166,0.00024646,7]
[340920046,1730091043805,-151.0,0.00024646,7]
[340920047,1730091043815,-151.0,0.00024646,7]
[340920048,1730091043825,-196.245166,0.00024646,7]
[340920049,1730091043838,-196.245166,0.00024646,7]
[340920050,1730091043849,-196.245166,0.00024646,7]
[340920051,1730091043859,-196.245166,0.00024646,7]
[340920052,1730091043869,-196.245166,0.00024646,7]
[340920053,1730091043878,-196.245166,0.00024646,7]
[340920054,1730091043888,-196.245167,0.00024646,7]
[340920055,1730091043903,-151.0,0.00024646,7]
[340920056,1730091043913,-151.0,0.00024646,7]
[340920057,1730091043923,-151.0,0.00024646,7]
[340920058,1730091043932,-151.0,0.00024646,7]
[340920059,1730091043941,-151.0,0.00024646,7]
[340920060,1730091043951,-151.0,0.00024646,7]
[340920061,1730091043961,-151.0,0.00024646,7]
[340920062,1730091043970,-151.0,0.00024646,7]
[340920063,1730091043979,-151.0,0.00024646,7]
[340920064,1730091043988,-185.783799,0.00024646,7]
[340920065,1730091043997,-151.0,0.00024646,7]
[340920066,1730091044006,-151.0,0.00024646,7]
[340920067,1730091044015,-151.0,0.00024646,7]
[340920068,1730091044024,-151.0,0.00024646,7]
[340920069,1730091044033,-151.0,0.00024646,7]
[340920070,1730091044042,-151.0,0.00024646,7]
[340920071,1730091044051,-151.0,0.00024646,7]
[340920072,1730091044060,-320.398725,0.00024646,7]
[340920073,1730091044069,-320.398725,0.00024646,7]
[340920074,1730091044079,-320.398725,0.00024646,7]
[340920075,1730091044089,-320.398725,0.00024646,7]
[340920077,1730091044099,-320.398725,0.00024646,7]
[340920078,1730091044110,-320.398725,0.00024646,7]
[340920079,1730091044119,-320.398725,0.00024646,7]
[340920080,1730091044129,-320.398725,0.00024646,7]
[340920081,1730091044138,-320.398725,0.00024646,7]
[340920082,1730091044150,-320.398725,0.00024646,7]
[340920083,1730091044159,-151.0,0.00024646,7]
[340920084,1730091044168,-320.398725,0.00024646,7]
[340920085,1730091044178,-312.11257,0.00024646,7]
[340920086,1730091044187,-320.398725,0.00024646,7]
[340920087,1730091044198,-151.0,0.00024646,7]
[340920088,1730091044208,-312.11257,0.00024646,7]
[340920089,1730091044218,-320.398725,0.00024646,7]
[340920090,1730091044229,-151.0,0.00024646,7]
[340920091,1730091044240,-312.11257,0.00024646,7]
[340920092,1730091044251,-320.39872478,0.00024646,7]
[340920093,1730091044261,-312.11257,0.00024646,7]
[340920094,1730091044270,-312.11257,0.00024646,7]
[340920095,1730091044279,-151.0,0.00024646,7]
[340920096,1730091044288,-312.11257,0.00024646,7]
[340920097,1730091044298,-151.0,0.00024646,7]
[340920098,1730091044307,-312.11257,0.00024646,7]
[340920099,1730091044317,-151.0,0.00024646,7]
[340920100,1730091044326,-151.0,0.00024646,7]
[340920101,1730091044336,-312.11257,0.00024646,7]
[340920102,1730091044346,-151.0,0.00024646,7]
[340920103,1730091044356,-151.0,0.00024646,7]
[340920104,1730091044366,-312.11257,0.00024646,7]
[340920105,1730091044375,-151.0,0.00024646,7]
[340920106,1730091044385,-312.11257,0.00024646,7]
[340920107,1730091044397,-151.0,0.00024646,7]
[340920108,1730091044406,-151.0,0.00024646,7]
[340920109,1730091044416,-312.11257,0.00024646,7]
[340920110,1730091044426,-187.853254,0.00024646,7]
[340920111,1730091044436,-312.11257,0.00024646,7]
[340920112,1730091044446,-312.11257,0.00024646,7]
[340920113,1730091044456,-312.112572,0.00024646,7]
[340920114,1730091044466,-702.029397,0.00024646,7]
[340920115,1730091044476,-231.850467,0.00024646,7]
[340920116,1730091044486,-702.029397,0.00024646,7]
[340920117,1730091044496,-231.850467,0.00024646,7]
[340920118,1730091044505,-702.029397,0.00024646,7]
[340920119,1730091044515,-231.850467,0.00024646,7]
[340920120,1730091044526,-702.029397,0.00024646,7]
[340920121,1730091044536,-231.850467,0.00024646,7]
[340920122,1730091044545,-702.029397,0.00024646,7]
[340920123,1730091044555,-231.850467,0.00024646,7]
[340920124,1730091044565,-702.029397,0.00024646,7]
[340920125,1730091044574,-231.850467,0.00024646,7]
[340920126,1730091044583,-231.850467,0.00024646,7]
[340920127,1730091044593,-702.029397,0.00024646,7]
[340920128,1730091044602,-702.029397,0.00024646,7]
[340920129,1730091044612,-231.850467,0.00024646,7]
[340920130,1730091044621,-702.029397,0.00024646,7]
[340920131,1730091044631,-231.850467,0.00024646,7]
[340920132,1730091044641,-702.029397,0.00024646,7]
[340920133,1730091044651,-231.850467,0.00024646,7]
[340920134,1730091044661,-231.850467,0.00024646,7]
[340920135,1730091044670,-231.850467,0.00024646,7]
[340920136,1730091044679,-702.029397,0.00024646,7]
[340920137,1730091044689,-151.0,0.00024646,7]
[340920138,1730091044698,-231.850467,0.00024646,7]
[340920139,1730091044707,-702.029397,0.00024646,7]
[340920140,1730091044717,-231.850467,0.00024646,7]
[340920141,1730091044728,-151.0,0.00024646,7]
[340920142,1730091044738,-702.029397,0.00024646,7]
[340920143,1730091044748,-151.0,0.00024646,7]
[340920144,1730091044759,-151.0,0.00024646,7]
[340920145,1730091044768,-702.029401,0.00024646,7]
[340920146,1730091044778,-151.0,0.00024646,7]
[340920147,1730091044789,-151.0,0.00024646,7]
[340920148,1730091044799,-151.0,0.00024646,7]
[340920149,1730091044811,-151.0,0.00024646,7]
[340920150,1730091044822,-151.0,0.00024646,7]
[340920151,1730091044836,-151.0,0.00024646,7]
[340920152,1730091044846,-151.0,0.00024646,7]
[340920153,1730091044855,-174.414342,0.00024646,7]
[340920154,1730091044864,-151.0,0.00024646,7]
[340920155,1730091044874,-151.0,0.00024646,7]
[340920156,1730091044884,-151.0,0.00024646,7]
[340920157,1730091044893,-151.0,0.00024646,7]
[340920158,1730091044903,-151.0,0.00024646,7]
[340920159,1730091044914,-151.0,0.00024646,7]
[340920160,1730091044923,-151.0,0.00024646,7]
[340920161,1730091044933,-151.0,0.00024656,7]
[340920162,1730091044942,-150.04800644,0.00024658,2]
[340920163,1730091044951,-492.51224306,0.00024673,2]
[340920164,1730091044960,-500.0,0.00024673,2]
[340920165,1730091044969,-500.0,0.00024673,2]
[340920166,1730091044978,-1000.0,0.00025,2]
[340920167,1730091044988,-304.0,0.00025775,2]
[340920168,1730091044997,-1000.0,0.00026042,2]
[340920169,1730091045006,-1000.0,0.00026042,2]
[340920170,1730091045016,-14146.7958709,0.00026329,4]
[340920171,1730091045025,-14146.7958709,0.00026339,4]
[340920172,1730091045035,-209.82072949,0.00026348,2]
[340920173,1730091045045,-5049.69128452,0.00026349,3]
[340920174,1730091045056,-2524.84564226,0.00026349,3]
[340920175,1730091045065,-2524.84564226,0.00026349,3]
[340920176,1730091045075,-2524.84564226,0.00026349,3]
[340920177,1730091045084,-2524.84564226,0.00026349,3]
[340920178,1730091045094,-2524.84564226,0.00026349,3]
[340920179,1730091045104,-2524.84564226,0.00026349,3]
[340920180,1730091045114,-2524.84564226,0.00026349,3]
[340920181,1730091045124,-2524.84564226,0.00026349,3]
[340920182,1730091045134,-2524.84564226,0.00026349,3]
[340920183,1730091045144,-2524.84564226,0.00026349,3]
[340920184,1730091045154,-2524.84564226,0.00026349,3]
[340920185,1730091045164,-2524.84564226,0.00026349,3]
[340920186,1730091045173,-2524.84564226,0.00026349,3]
[340920187,1730091045183,-2524.84564226,0.00026349,3]
[340920188,1730091045193,-2524.84564226,0.00026349,3]
[340920189,1730091045204,-2524.84564226,0.00026349,3]
[340920190,1730091045214,-2524.84564226,0.00026349,3]
[340920191,1730091045224,-500.0,0.00026373,2]
[340920192,1730091045234,-500.0,0.00026373,2]
[340920193,1730091045244,-500.0,0.00026373,2]
[340920194,1730091045253,-500.0,0.00026373,2]
[340920195,1730091045264,-500.0,0.00026373,2]
[340920196,1730091045274,-500.0,0.00026373,2]
[340920197,1730091045284,-500.0,0.00026373,2]
[340920198,1730091045294,-150.977,0.0002643,2]
[340920199,1730091045303,-532.15,0.0002643,2]
[340920200,1730091045313,-382.284,0.0002643,2]
[340920201,1730091045323,-2395.0,0.0002643,2]
[340920202,1730091045333,-183.686,0.0002643,2]
[340920203,1730091045343,-150.162,0.0002643,2]
[340920204,1730091045352,-150.61,0.0002643,2]
[340920205,1730091045362,-587.0,0.00026751,2]
[340920206,1730091045372,-87887.69973014,0.00027,2]
[340920207,1730091045391,-662.8852,0.00027,2]
[340920208,1730091045519,-11.90138793,0.00027,2]
[340920211,1730091109516,2005.278669,0.00036136,30]
[340920212,1730091116861,20038.0,0.00036136,30]
[340920213,1730091469946,200.000004,0.00013973,2]
[340920214,1730092015537,160.972214,0.00013973,2]
[340920221,1730092238149,-469.82269158,0.00025278,2]
[340920222,1730092238160,-215.101376,0.00025755,2]
[340920223,1730092238171,-221.402948,0.0002577,2]
[340920224,1730092238180,-160.028014,0.00025937,2]
[340920225,1730092238189,-160.972214,0.00026274,2]
[340920226,1730092238198,-160.028014,0.00026275,2]
[340920227,1730092238209,-156.7025925,0.000263,2]
[340920228,1730092238223,-153.0,0.000263,2]
[340920229,1730092238234,-153.0,0.000265,2]
[340920230,1730092238244,-230.1758612,0.000265,2]
[340920231,1730092238254,-300.0,0.00026596,2]
[340920232,1730092238264,-300.0,0.00026596,2]
[340920233,1730092238274,-500.0,0.00026597,3]
[340920234,1730092238284,-500.0,0.00026597,3]
[340920235,1730092238293,-500.0,0.00026597,3]
[340920236,1730092238302,-500.0,0.00026597,3]
[340920237,1730092238311,-500.0,0.00026597,3]
[340920238,1730092238321,-153.0,0.000266,2]
[340920239,1730092238331,-153.0,0.000266,2]
[340920240,1730092238342,-160.028014,0.00026613,2]
[340920241,1730092238353,-8897.14948252,0.00026717,2]
[340920242,1730092238362,-150.0,0.00026767,2]
[340920243,1730092238373,-528.0,0.00026767,2]
[340920244,1730092238383,-2169.5,0.00026767,2]
[340920245,1730092238396,-160.028014,0.00026951,2]
[340920246,1730092238409,-1795.44270433,0.00026999,2]
[340920247,1730092238420,-7244.07285892,0.00027,2]
[340920257,1730092243014,-4970.6,0.00027,2]
[340920267,1730092579790,160.0,0.00013973,2]
[340920268,1730093131029,160.972214,0.00013973,2]
[340920269,1730093318436,3483.81156397,0.0002,2]
[340920270,1730093320458,1051.21440282,0.0002,120]
[340920271,1730093321784,150.0,2.75e-05,120]
[340920328,1730093438064,-326.65007939,0.00024,120]
[340920329,1730093438074,-215.101376,0.00024015,2]
[340920330,1730093438083,-58.24854461,0.00024973,2]
[340920339,1730093443018,-441.75145539,0.00024973,2]
[340920340,1730093443028,-500.0,0.00024973,2]
[340920341,1730093443037,-1676.80263093,0.00024973,2]
[340920342,1730093443048,-200.01,0.0002499,10]
[340920343,1730093443058,-300.0,0.00024999,2]
[340920344,1730093443067,-300.0,0.00024999,2]
[340920345,1730093443078,-183.09862389,0.00025,2]
[340920346,1730093443091,-4588.9766185,0.00025,2]
[340920350,1730093773451,160.457512,0.00013973,2]
[340920351,1730093774442,-160.457512,0.00021661,2]
[340920353,1730094560141,-178.477417,0.00023011,2]
[340920354,1730094560162,-215.1013771,0.00023409,2]
[340920355,1730094560183,-742.65131509,0.00023431,2]
[340920386,1730094640327,-67.37992311,0.00023431,2]
[340920387,1730094640337,-191.502302,0.00023463,2]
[340920388,1730094640347,-189.518161,0.00023463,2]
[340920389,1730094640357,-325.7463772,0.00023563,2]
[340920390,1730094640367,-160.821209,0.00023757,2]
[340920391,1730094640376,-160.821209,0.00023895,2]
[340920392,1730094640386,-160.821209,0.00024032,2]
[340920393,1730094640395,-160.821209,0.0002417,2]
[340920394,1730094640405,-160.821209,0.00024308,2]
[340920395,1730094640415,-160.821209,0.00024445,2]
[340920396,1730094640424,-160.821209,0.00024583,2]
[340920397,1730094640434,-160.821209,0.0002472,2]
[340920398,1730094640444,-300.0,0.00024853,2]
[340920399,1730094640453,-300.0,0.00024853,2]
[340920400,1730094640465,-3138.96829154,0.00024854,2]
[340920401,1730094640478,-4628.97202513,0.00024854,2]
[340920402,1730094640489,-160.821209,0.00024858,2]
[340920403,1730094640500,-215.36374141,0.0002489,2]
[340920404,1730094640509,-1467.20230209,0.0002489,2]
[340920405,1730094640519,-215.3637414,0.0002495,2]
[340920406,1730094640528,-501.91588931,0.00024973,2]
[340920407,1730094640538,-500.0,0.00024973,2]
[340920408,1730094640550,-500.0,0.00024973,2]
[340920409,1730094640560,-14427.4061778,0.0002498,3]
[340920410,1730094640571,-1011.83250514,0.00024989,2]
[340920411,1730094640581,-192.83982704,0.0002499,2]
[340920412,1730094640590,-2190.38258168,0.0002499,3]
[340920445,1730094646136,-160.821209,0.00024208,2]
[340920446,1730094646147,-1204.01431015,0.0002499,3]
[340920447,1730094880104,195.826651,0.00013973,2]
[340920448,1730094880397,195.826651,0.00020447,2]
[340920449,1730094997005,507.77,0.00022,60]
[340920494,1730095835917,-562.40314889,0.00023,2]
[340920496,1730095835928,-189.518161,0.00023116,2]
[340920497,1730095835937,-424.0774918,0.00023503,2]
[340920498,1730095835947,-415.2691444,0.00023552,2]
[340920499,1730095835956,-159.956676,0.00023663,2]
[340920500,1730095835966,-267.105,0.0002372,2]
[340920501,1730095835975,-177.844833,0.00023754,2]
[340920502,1730095835985,-159.956676,0.00023869,2]
[340920503,1730095835995,-35.03226801,0.00024074,2]
[340920522,1730095838647,-124.92440799,0.00024074,2]
[340920523,1730095838658,-159.956676,0.0002428,2]
[340920524,1730095838670,-7851.24444507,0.00024415,2]
[340920525,1730095838680,-300.0,0.00024428,2]
[340920526,1730095838690,-300.0,0.00024428,2]
[340920527,1730095838699,-159.956676,0.00024485,2]
[340920528,1730095838709,-159.956676,0.00024691,2]
[340920529,1730095838718,-2151.52046255,0.00024873,2]
[340920530,1730095838728,-159.956676,0.00024896,2]
[340920531,1730095838738,-502.56145791,0.00024973,2]
[340920532,1730095838747,-500.0,0.00024973,2]
[340920533,1730095838757,-500.0,0.00024973,2]
[340920534,1730095838767,-500.75303525,0.00024973,2]
[340920535,1730095838776,-501.01103296,0.00024973,2]
[340920536,1730095838785,-501.99037,0.00024973,2]
[340920537,1730095838794,-501.59591763,0.00024973,2]
[340920538,1730095838804,-505.23615117,0.00024973,2]
[340920539,1730095838814,-290.98398328,0.00024973,2]
[340920540,1730095838823,-151.0,0.00024973,7]
[340920541,1730095838832,-162.390141,0.00024973,7]
[340920542,1730095838841,-162.390141,0.00024973,7]
[340920543,1730095838854,-162.390141,0.00024973,7]
[340920544,1730095838863,-162.390141,0.00024973,7]
[340920545,1730095838873,-151.0,0.00024973,7]
[340920546,1730095838882,-151.0,0.00024973,7]
[340920547,1730095838892,-151.0,0.00024973,7]
[340920548,1730095838901,-151.0,0.00024973,7]
[340920549,1730095838912,-151.0,0.00024973,7]
[340920550,1730095838924,-190.630076,0.00024973,7]
[340920551,1730095838934,-151.0,0.00024973,7]
[340920552,1730095838943,-151.0,0.00024973,7]
[340920553,1730095838953,-3000.0,0.00024973,2]
[340920554,1730095838963,-3000.0,0.00024973,2]
[340920555,1730095838973,-3000.0,0.00024973,2]
[340920556,1730095838983,-1055.060327,0.00024973,2]
[340920557,1730095838992,-246.409655,0.00024973,7]
[340920558,1730095839001,-172.29099314,0.0002498,2]
[340920559,1730095839011,-8682.91603378,0.0002498,3]
[340920568,1730095840579,-7851.24444507,0.00024921,2]
[340920569,1730095840588,-502.67913316,0.00024973,2]
[340920570,1730095840598,-4853.39999052,0.0002498,3]
[340920571,1730095840607,-24627.588189,0.0002498,3]
[340920572,1730095840617,-151.0,0.0002499,7]
[340920573,1730095840626,-151.0,0.0002499,7]
[340920574,1730095840636,-162.390141,0.0002499,7]
[340920575,1730095840645,-162.390141,0.0002499,7]
[340920576,1730095840654,-151.0,0.0002499,7]
[340920577,1730095840663,-40608.9480729,0.0002499,3]
[340920578,1730095840673,-73882.764567,0.0002499,3]
[340920579,1730095840682,-22594.64372472,0.00025,2]
[340920583,1730095843876,-11.28698165,0.00025,2]
[340920588,1730095944160,237.020079,0.00013973,2]
[340920589,1730095944368,237.020079,0.00020447,2]
[340920590,1730096553339,213.318071,0.00013973,2]
[340920591,1730096553557,213.318071,0.00020447,2]
[340920592,1730096641973,1319.20644296,0.00036134,60]
[340920596,1730096917679,667.00787678,0.0002,2]
[340920645,1730097038732,-166.666666,0.00023267,2]
[340920646,1730097038742,-177.844833,0.0002331,2]
[340920647,1730097038752,-166.666666,0.00023902,2]
[340920648,1730097038763,-1178.45272638,0.0002393,2]
[340920649,1730097038777,-6672.79171869,0.0002393,2]
[340920650,1730097038786,-300.0,0.00024282,2]
[340920651,1730097038795,-300.0,0.00024282,2]
[340920652,1730097038805,-7851.24444507,0.00024283,2]
[340920653,1730097038814,-166.666666,0.00024536,2]
[340920654,1730097038823,-7851.24444507,0.00024558,2]
[340920655,1730097038832,-150.04800644,0.00024658,2]
[340920656,1730097038842,-193.98932218,0.00024691,2]
[340920657,1730097038851,-6063.78204661,0.00024691,2]
[340920658,1730097038862,-596.29,0.00024691,2]
[340920704,1730097040768,-1191.17239849,0.00024691,2]
[340920705,1730097040777,-1882.58040474,0.0002479,2]
[340920706,1730097040787,-172.29099314,0.0002489,2]
[340920707,1730097040796,-492.51224306,0.00024973,2]
[340920708,1730097040806,-151.0,0.0002499,7]
[340920709,1730097040816,-151.0,0.0002499,7]
[340920710,1730097040825,-151.0,0.0002499,7]
[340920711,1730097040835,-151.0,0.0002499,7]
[340920712,1730097040845,-351.014699,0.0002499,7]
[340920713,1730097040854,-151.0,0.0002499,7]
[340920714,1730097040863,-151.0,0.0002499,7]
[340920715,1730097040873,-241.341566,0.0002499,7]
[340920716,1730097040883,-151.0,0.0002499,7]
[340920717,1730097040893,-151.0,0.0002499,7]
[340920719,1730097040902,-151.0,0.0002499,7]
[340920720,1730097040911,-227.123576,0.0002499,7]
[340920721,1730097040921,-151.0,0.0002499,7]
[340920722,1730097040930,-355.017156,0.0002499,7]
[340920723,1730097040940,-355.017156,0.0002499,7]
[340920724,1730097040950,-151.0,0.0002499,7]
[340920725,1730097040961,-151.0,0.0002499,7]
[340920726,1730097040970,-151.0,0.0002499,7]
[340920727,1730097040980,-151.0,0.0002499,7]
[340920728,1730097040990,-58067.3992388,0.0002499,3]
[340920729,1730097041000,-203.248459,0.0002499,7]
[340920730,1730097041015,-151.0,0.0002499,7]
[340920731,1730097041026,-151.0,0.0002499,7]
[340920732,1730097041035,-203.248459,0.0002499,7]
[340920733,1730097041046,-151.0,0.0002499,7]
[340920734,1730097041056,-440.910509,0.0002499,7]
[340920735,1730097041066,-440.910509,0.0002499,7]